{"text_format":"1","workbook":"xlsx","n_sheets":1,"sheets":["Producent"],"not_rendered":{"charts":0,"images":0,"macros":0,"external_links":0,"defined_names":1,"comments":0,"pivot_tables":0},"unopened":[],"bounds":{"document_bytes":16777216,"sheet_cells":100000,"rows_first":2000,"rows_last":500,"rows_between":2000,"halvings":0,"cell_chars":16384,"cell_head_chars":4096},"cells_cut":0,"cells_raw":0,"read":"whole","date_system":"1900"}

{"sheet":"Producent","index":0,"n_rows":151,"n_cols":30,"rows_kept":151,"cut":false,"hidden":false,"merged":[[130,1,134,21],[141,1,141,30],[138,1,138,30],[137,1,137,30],[121,25,121,30],[114,1,114,6],[80,1,80,6],[80,8,80,19],[80,20,80,24],[80,25,80,30],[99,1,99,6],[99,8,99,19],[99,20,99,24],[99,25,99,30],[118,1,118,6],[118,8,118,19],[118,20,118,24],[118,25,118,30],[104,20,104,24],[104,25,104,30],[105,3,105,6],[105,8,105,19],[105,20,105,24],[105,25,105,30],[114,8,114,19],[114,20,114,24],[114,25,114,30],[112,1,112,6],[112,8,112,19],[112,20,112,24],[112,25,112,30],[113,1,113,6],[113,8,113,19],[113,20,113,24],[113,25,113,30],[109,8,109,19],[109,20,109,24],[109,25,109,30],[110,1,110,6],[110,8,110,19],[110,20,110,24],[110,25,110,30],[98,1,98,30],[100,1,101,6],[100,7,101,7],[100,8,101,19],[104,1,104,6],[105,1,106,2],[106,3,106,6],[108,1,108,6],[102,1,102,6],[102,8,102,19],[102,20,102,24],[102,25,102,30],[103,1,103,6],[103,8,103,19],[103,20,103,24],[103,25,103,30],[104,8,104,19],[126,1,126,14],[126,15,126,30],[125,15,125,30],[122,1,122,6],[122,8,122,19],[122,20,122,24],[122,25,122,30],[117,1,117,30],[119,1,120,6],[119,7,120,7],[119,8,120,19],[121,1,121,6],[121,8,121,19],[121,20,121,24],[119,20,120,24],[119,25,120,30],[95,1,95,6],[95,8,95,19],[95,20,95,24],[95,25,95,30],[92,1,92,6],[93,1,93,6],[94,1,94,6],[124,1,124,30],[125,1,125,14],[109,1,109,6],[111,1,111,6],[111,8,111,19],[111,20,111,24],[111,25,111,30],[106,8,106,19],[106,20,106,24],[106,25,106,30],[107,1,107,6],[107,8,107,19],[107,20,107,24],[107,25,107,30],[108,8,108,19],[108,20,108,24],[108,25,108,30],[89,25,89,30],[90,25,90,30],[91,25,91,30],[92,25,92,30],[93,8,93,19],[94,8,94,19],[93,20,93,24],[94,20,94,24],[93,25,93,30],[94,25,94,30],[89,8,89,19],[90,8,90,19],[91,8,91,19],[92,8,92,19],[92,20,92,24],[150,1,150,30],[140,1,140,30],[143,1,143,30],[148,1,148,30],[149,1,149,30],[91,1,91,6],[86,1,87,2],[86,3,86,6],[87,3,87,6],[90,1,90,6],[147,1,147,30],[142,1,142,30],[144,1,144,30],[145,1,145,30],[146,1,146,30],[100,25,101,30],[100,20,101,24],[86,8,86,19],[86,20,86,24],[87,20,87,24],[88,20,88,24],[89,20,89,24],[90,20,90,24],[91,20,91,24],[75,24,75,30],[76,24,76,30],[81,8,82,19],[83,8,83,19],[83,25,83,30],[81,20,82,24],[81,25,82,30],[83,20,83,24],[84,20,84,24],[79,1,79,30],[81,7,82,7],[83,1,83,6],[84,1,84,6],[87,8,87,19],[88,8,88,19],[84,25,84,30],[85,25,85,30],[86,25,86,30],[87,25,87,30],[88,25,88,30],[84,8,84,19],[85,8,85,19],[85,20,85,24],[28,22,30,22],[25,22,27,22],[25,24,27,24],[28,23,30,23],[28,1,30,5],[25,6,27,6],[28,7,30,8],[70,18,70,20],[25,26,27,26],[48,9,48,30],[49,28,50,30],[49,24,50,24],[65,7,65,8],[66,1,66,5],[63,7,63,8],[64,1,64,5],[59,1,60,5],[59,6,60,6],[59,7,60,8],[61,1,61,5],[49,22,50,22],[54,1,56,5],[64,7,64,8],[28,29,30,30],[31,29,31,30],[36,29,37,30],[38,29,40,30],[41,29,43,30],[44,29,44,30],[28,28,30,28],[38,28,40,28],[36,27,37,27],[51,6,53,6],[54,6,56,6],[48,1,50,5],[28,15,30,17],[38,15,40,17],[38,18,40,20],[73,24,73,30],[139,1,139,30],[54,26,56,26],[54,15,56,17],[54,23,56,23],[54,24,56,24],[76,1,76,22],[68,7,68,8],[69,7,69,8],[70,7,70,8],[72,1,72,30],[73,1,73,22],[74,1,74,22],[75,1,75,22],[70,1,70,5],[128,1,129,30],[130,22,134,30],[69,1,69,5],[66,7,66,8],[67,7,67,8],[68,1,68,5],[25,27,27,27],[28,18,30,20],[28,25,30,25],[33,1,33,30],[34,1,34,5],[34,7,34,8],[34,15,34,17],[34,18,34,20],[38,7,40,8],[31,15,31,17],[38,22,40,22],[34,29,34,30],[38,26,40,26],[38,27,40,27],[31,1,31,5],[38,23,40,23],[31,7,31,8],[31,9,31,14],[38,21,40,21],[38,6,40,6],[25,18,27,20],[28,21,30,21],[1,19,5,30],[7,1,7,30],[8,1,8,30],[13,17,13,30],[50,18,50,20],[49,21,50,21],[49,25,50,25],[48,6,50,6],[28,24,30,24],[31,18,31,20],[46,1,46,30],[28,9,30,14],[23,9,24,14],[25,9,27,14],[23,23,24,23],[24,15,24,17],[24,18,24,20],[28,27,30,27],[36,28,37,28],[28,26,30,26],[36,25,37,25],[23,29,24,30],[25,29,27,30],[51,1,53,5],[36,26,37,26],[23,15,23,20],[25,21,27,21],[47,7,47,8],[44,1,44,5],[62,1,62,5],[49,9,50,14],[57,7,57,8],[61,7,61,8],[57,1,58,4],[44,7,44,8],[44,9,44,14],[41,26,43,26],[47,1,47,5],[28,6,30,6],[41,1,43,5],[41,6,43,6],[38,1,40,5],[41,21,43,21],[35,1,37,5],[35,6,37,6],[35,7,37,8],[35,9,35,30],[51,27,53,27],[48,7,50,8],[51,7,53,8],[51,23,53,23],[51,26,53,26],[51,9,53,14],[51,21,53,21],[51,22,53,22],[49,23,50,23],[50,15,50,17],[49,15,49,20],[49,27,50,27],[36,15,36,20],[36,21,37,21],[36,22,37,22],[36,23,37,23],[36,24,37,24],[41,28,43,28],[41,7,43,8],[41,9,43,14],[41,15,43,17],[41,18,43,20],[36,9,37,14],[37,15,37,17],[37,18,37,20],[10,1,10,30],[11,1,11,15],[11,17,11,30],[14,1,14,15],[14,17,14,30],[15,17,15,30],[15,1,15,15],[16,17,16,30],[12,17,12,30],[17,17,17,30],[13,1,13,15],[16,1,16,15],[17,1,17,15],[12,1,12,15],[25,25,27,25],[25,23,27,23],[25,15,27,17],[25,7,27,8],[25,1,27,5],[21,1,21,5],[20,1,20,30],[22,1,24,5],[22,7,24,8],[21,7,21,8],[23,25,24,25],[23,27,24,27],[22,6,24,6],[21,15,21,17],[23,26,24,26],[23,28,24,28],[22,9,22,30],[25,28,27,28],[21,29,21,30],[85,1,85,6],[88,1,88,6],[89,1,89,6],[51,15,53,17],[51,24,53,24],[51,25,53,25],[51,18,53,20],[70,15,70,17],[70,9,70,14],[54,25,56,25],[54,18,56,20],[62,7,62,8],[58,7,58,8],[54,7,56,8],[74,24,74,30],[67,1,67,5],[65,1,65,5],[70,28,70,30],[81,1,82,6],[63,1,63,5],[54,9,56,14],[57,9,69,30],[51,28,53,30],[54,28,56,30],[21,9,21,14],[34,9,34,14],[47,9,47,14],[47,28,47,30],[21,18,21,20],[54,27,56,27],[54,21,56,21],[54,22,56,22],[47,15,47,17],[47,18,47,20],[44,15,44,17],[44,18,44,20],[41,22,43,22],[49,26,50,26],[41,27,43,27],[38,9,40,14],[23,24,24,24],[23,21,24,21],[23,22,24,22],[38,24,40,24],[38,25,40,25],[41,23,43,23],[41,24,43,24],[41,25,43,25]]}
[]
[null,null,null,null,null,null,null,null,null,null,null,null,null,null,null,null,null,null,null,"Załącznik do rozporządzenia \nMinistra Energii z dnia 3 czerwca 2019 r. \n(Dz. U. poz. 1113)\n\n"]
[]
[]
[]
[]
[]
[null,"Sprawozdanie kwartalne podmiotu realizującego Narodowy Cel Wskaźnikowy"]
[null,"za ………  kwartał 20………. r."]
[]
[null,"Informacje o podmiocie realizującym Narodowy Cel Wskaźnikowy "]
[null,"Oznaczenie podmiotu1)",null,null,null,null,null,null,null,null,null,null,null,null,null,null,"1"]
[null,"Państwo2)",null,null,null,null,null,null,null,null,null,null,null,null,null,null,"2"]
[null,"Ulica i numer budynku/lokalu zamieszkania/siedziby",null,null,null,null,null,null,null,null,null,null,null,null,null,null,"3"]
[null,"Kod pocztowy",null,null,null,null,null,null,null,null,null,null,null,null,null,null,"4"]
[null,"Miejscowość",null,null,null,null,null,null,null,null,null,null,null,null,null,null,"5"]
[null,"Województwo ",null,null,null,null,null,null,null,null,null,null,null,null,null,null,"6"]
[null,"Nr identyfikacji podatkowej3)",null,null,null,null,null,null,null,null,null,null,null,null,null,null,"7"]
[null," "]
[]
[null,"1. ILOŚCI I RODZAJE PALIW CIEKŁYCH, WYKORZYSTANYCH DO REALIZACJI OBOWIĄZKU, O KTÓRYM MOWA W ART. 23B USTAWY Z DNIA 25 SIERPNIA 2006 R. O BIOKOMPONENTACH I BIOPALIWACH CIEKŁYCH, ZWANEJ DALEJ „USTAWĄ”, ROZPORZĄDZANYCH PRZEZ DOKONANIE JAKIEJKOLWIEK CZYNNOŚCI PRAWNEJ LUB FAKTYCZNEJ SKUTKUJĄCEJ TRWAŁYM WYZBYCIEM SIĘ PALIW CIEKŁYCH LUB ZUŻYTYCH NA POTRZEBY WŁASNE Z OKREŚLENIEM ZAWARTOŚCI BIOKOMPONENTÓW W TYCH PALIWACH 4), 5)"]
[null,0,null,null,null,null,1,2,null,3,null,null,null,null,null,4,null,null,5,null,null,6,7,8,9,10,11,12,13,14]
[null,"Paliwo ciekłe",null,null,null,null,"Nr wiersza","Ilość [tony]6)",null,"Zawartość biokomponentów w paliwie ciekłym [tony]6)"]
[null,null,null,null,null,null,null,null,null,"bioetanol ",null,null,null,null,null,"ester ",null,null,null,null,null,"biometanol","bioeter dimetylowy","czysty olej roślinny","biobutanol","bio propan-butan","skroplony biometan","sprężony biometan","biowodór","biowęglowodory ciekłe"]
[null,null,null,null,null,null,null,null,null,null,null,null,null,null,null," metylowy kwasów tłuszczowych",null,null," etylowy kwasów tłuszczowych"]
[null,"Benzyny silnikowe, które mogą zawierać biowęglowodory ciekłe lub do 10,0 % objętościowo innych biokomponentów lub do 22,0 % objętoścowo eteru etylo-tert-butylowego lub eteru etylo-tert-amylowego",null,null,null,null,8,0,null,0,null,null,null,null,null,0,null,null,0,null,null,0,0,0,0,0,0,0,0,0]
[]
[]
[null,"Olej napędowy, który może zawierać biowęglowodory ciekłe lub do 7,0% objętościowo innych biokomponentów ",null,null,null,null,9,0,null,0,null,null,null,null,null,0,null,null,0,null,null,0,0,0,0,0,0,0,0,0]
[]
[]
[null,"RAZEM (w.8+w.9)",null,null,null,null,10,{"$f":"SUM(H26:I31)","v":0},null,{"$f":"SUM(J26:O31)","v":0},null,null,null,null,null,{"$f":"SUM(P26:R31)","v":0},null,null,{"$f":"SUM(S26:U31)","v":0},null,null,{"$f":"SUM(V26:V31)","v":0},0,0,0,0,0,0,0,{"$f":"SUM(AD26:AE31)","v":0}]
[]
[null,"2. ILOŚCI I RODZAJE PALIW CIEKŁYCH, KTÓRE NIE ZOSTAŁY WYKORZYSTANE DO REALIZACJI OBOWIĄZKU, O KTÓRYM MOWA W ART. 23B USTAWY, ROZPORZĄDZANYCH PRZEZ DOKONANIE JAKIEJKOLWIEK CZYNNOŚCI PRAWNEJ LUB FAKTYCZNEJ SKUTKUJĄCEJ TRWAŁYM WYZBYCIEM SIĘ PALIW CIEKŁYCH LUB ZUŻYTYCH NA POTRZEBY WŁASNE Z OKREŚLENIEM ZAWARTOŚCI BIOKOMPONENTÓW W TYCH PALIWACH 4), 7)"]
[null,0,null,null,null,null,1,2,null,3,null,null,null,null,null,4,null,null,5,null,null,6,7,8,9,10,11,12,13,14]
[null,"Paliwo ciekłe",null,null,null,null,"Nr wiersza","Ilość [tony]6)",null,"Zawartość biokomponentów w paliwie ciekłym [tony]6)"]
[null,null,null,null,null,null,null,null,null,"bioetanol ",null,null,null,null,null,"ester ",null,null,null,null,null,"biometanol","bioeter dimetylowy","czysty olej roślinny","biobutanol","bio propan-butan","skroplony biometan","sprężony biometan","biowodór","biowęglowodory ciekłe"]
[null,null,null,null,null,null,null,null,null,null,null,null,null,null,null," metylowy kwasów tłuszczowych",null,null," etylowy kwasów tłuszczowych"]
[null,"Benzyny silnikowe, kóre mogą zawierać bioweglowodory ciekłe lub do 10,0 % objętościowo innych biokomponentów lub  do 22,0 % objętoścowo eteru etylo-tert-butylowego lub eteru etylo-tert-amylowego",null,null,null,null,11,0,null,0,null,null,null,null,null,0,null,null,0,null,null,0,0,0,0,0,0,0,0,0]
[]
[]
[null,"Olej napędowy, który może zawierać biowęglowodory ciekłe lub do 7,0% objętościowo innych biokomponentów ",null,null,null,null,12,0,null,0,null,null,null,null,null,0,null,null,0,null,null,0,0,0,0,0,0,0,0,0]
[]
[]
[null,"RAZEM (w.11+w.12)",null,null,null,null,13,{"$f":"SUM(H39:I44)","v":0},null,{"$f":"SUM(J39:O44)","v":0},null,null,null,null,null,{"$f":"SUM(P39:R44)","v":0},null,null,{"$f":"SUM(S39:U44)","v":0},null,null,{"$f":"SUM(V39:V44)","v":0},0,0,0,0,0,0,0,{"$f":"SUM(AD39:AE44)","v":0}]
[]
[null,"3. ILOŚCI I RODZAJE BIOPALIW CIEKŁYCH ROZPORZĄDZANYCH PRZEZ DOKONANIE JAKIEJKOLWIEK CZYNNOŚCI PRAWNEJ LUB FAKTYCZNEJ SKUTKUJĄCEJ TRWAŁYM WYZBYCIEM SIĘ BIOPALIW CIEKŁYCH LUB ZUŻYTYCH NA POTRZEBY WŁASNE, Z OKREŚLENIEM ZAWARTOŚCI BIOKOMPONENTÓW W TYCH BIOPALIWACH 4), 8)"]
[null,0,null,null,null,null,1,2,null,3,null,null,null,null,null,4,null,null,5,null,null,6,7,8,9,10,11,12,13]
[null,"Biopaliwo ciekłe",null,null,null,null,"Nr wiersza","Ilość [tony]6)",null,"Zawartość biokomponentów w biopaliwie ciekłym [tony]6)"]
[null,null,null,null,null,null,null,null,null,"bioetanol ",null,null,null,null,null,"ester ",null,null,null,null,null,"biometanol","bioeter dimetylowy","czysty olej roślinny","biobutanol","bio propan-butan","skroplony biometan","sprężony biometan","biowodór"]
[null,null,null,null,null,null,null,null,null,null,null,null,null,null,null," metylowy kwasów tłuszczowych",null,null," etylowy kwasów tłuszczowych"]
[null,"Benzyny silnikowe zawierające powyżej 10 % objętościowo biokomponentów lub powyżej 22 % objętościowo eteru etylo-tert-butylowego lub eteru etylo-tert-amylowego, z wyłączeniem benzyn silnikowych zawierających biowęglowodory ciekłe",null,null,null,null,14,0,null,0,null,null,null,null,null,0,null,null,0,null,null,0,0,0,0,0,0,0,0]
[]
[]
[null,"Olej napędowy zawierający powyżej 7% objętościowo biokomponentów, z wyłączeniem oleju napędowego zawierającego biowęglowodory ciekłe",null,null,null,null,15,0,null,0,null,null,null,null,null,0,null,null,0,null,null,0,0,0,0,0,0,0,0]
[]
[]
[null,"ester stanowiący samoistne paliwo",null,null,null," metylowy kwasów tłuszczowych",16,0]
[null,null,null,null,null," etylowy kwasów tłuszczowych",17,0]
[null,"bioetanol stanowiący samoistne paliwo ",null,null,null,null,18,0]
[]
[null,"biometanol stanowiący samoistne paliwo",null,null,null,null,19,0]
[null,"bioeter dimetylowy stanowiący samoistne paliwo",null,null,null,null,20,0]
[null,"czysty olej roślinny stanowiący samoistne paliwo",null,null,null,null,21,0]
[null,"biobutanol stanowiący samoistne paliwo",null,null,null,null,22,0]
[null,"bio propan-butan stanowiący samoistne paliwo",null,null,null,null,23,0]
[null,"skroplony biometan stanowiący samoistne paliwo",null,null,null,null,24,0]
[null,"sprężony biometan stanowiący samoistne paliwo",null,null,null,null,25,0]
[null,"biowodór stanowiący samoistne paliwo",null,null,null,null,26,0]
[null,"biowęglowodory ciekłe stanowiące samoistne paliwo",null,null,null,null,27,0]
[null,"RAZEM (w.14+w.15+w.16+w.17+w.18+w.19+w.20+w.21+w.22+w.23+w.24+w.25+w.26+w.27)",null,null,null,null,28,{"$f":"SUM(H52:I70)","v":0},null,{"$f":"SUM(J52:O57)","v":0},null,null,null,null,null,{"$f":"SUM(P52:R57)","v":0},null,null,{"$f":"SUM(S52:U57)","v":0},null,null,{"$f":"SUM(V52:V57)","v":0},0,0,0,0,0,0,{"$f":"SUM(AC52:AE57)","v":0}]
[]
[null,"4. ILOŚCI I RODZAJE INNYCH PALIW ODNAWIALNYCH ROZPORZĄDZANYCH PRZEZ DOKONANIE JAKIEJKOLWIEK CZYNNOŚCI PRAWNEJ LUB FAKTYCZNEJ LUB ZUŻYTYCH NA POTRZEBY WŁASNE 9)"]
[null,"Rodzaj innego paliwa odnawialnego",null,null,null,null,null,null,null,null,null,null,null,null,null,null,null,null,null,null,null,null,null,"Nr wiersza","Ilość [tony]"]
[null,"Rodzaj 1:",null,null,null,null,null,null,null,null,null,null,null,null,null,null,null,null,null,null,null,null,null,29]
[null,"Rodzaj 2:",null,null,null,null,null,null,null,null,null,null,null,null,null,null,null,null,null,null,null,null,null,30]
[null,"Rodzaj 3:",null,null,null,null,null,null,null,null,null,null,null,null,null,null,null,null,null,null,null,null,null,31]
[]
[]
[null,"5.1. WARTOŚĆ ENERGETYCZNA BIOKOMPONENTÓW WYKORZYSTANYCH W PALIWACH CIEKŁYCH, O KTÓRYCH MOWA  W ART. 30B UST. 3 PKT 1 LIT. A USTAWY 10)"]
[null,0,null,null,null,null,null,1,2,null,null,null,null,null,null,null,null,null,null,null,3,null,null,null,null,4]
[null,"Rodzaj biokomponentu zawartego w benzynie silnikowej",null,null,null,null,null,"Nr wiersza","Ilość [tony]",null,null,null,null,null,null,null,null,null,null,null," Wartość opałowa [MJ/kg]",null,null,null,null," Wartość energetyczna [MJ]"]
[]
[null,"bioetanol",null,null,null,null,null,32,{"$f":"J26","v":0},null,null,null,null,null,null,null,null,null,null,null,27,null,null,null,null,{"$f":"I84*U84*1000","v":0}]
[null,"biometanol",null,null,null,null,null,33,{"$f":"V26","v":0},null,null,null,null,null,null,null,null,null,null,null,20,null,null,null,null,{"$f":"I85*U85*1000","v":0}]
[null,"biobutanol",null,null,null,null,null,34,{"$f":"Y26","v":0},null,null,null,null,null,null,null,null,null,null,null,33,null,null,null,null,0]
[null,"ester",null,"metylowy kwasów tłuszczowych",null,null,null,35,{"$f":"P26","v":0},null,null,null,null,null,null,null,null,null,null,null,37,null,null,null,null,0]
[null,null,null,"etylowy kwasów tłuszczowych",null,null,null,36,{"$f":"S26","v":0},null,null,null,null,null,null,null,null,null,null,null,40.1,null,null,null,null,0]
[null,"bioeter dimetylowy",null,null,null,null,null,37,{"$f":"W26","v":0},null,null,null,null,null,null,null,null,null,null,null,28,null,null,null,null,0]
[null,"czysty olej roślinny",null,null,null,null,null,38,{"$f":"X26","v":0},null,null,null,null,null,null,null,null,null,null,null,37,null,null,null,null,0]
[null,"biowęglowodory ciekłe do silników z zapłonem iskrowym",null,null,null,null,null,39,{"$f":"AD26","v":0},null,null,null,null,null,null,null,null,null,null,null,43,null,null,null,null,0]
[null,"bio propan-butan",null,null,null,null,null,40,{"$f":"Z26","v":0},null,null,null,null,null,null,null,null,null,null,null,0,null,null,null,null,0]
[null,"skroplony biometan",null,null,null,null,null,41,{"$f":"AA26","v":0},null,null,null,null,null,null,null,null,null,null,null,0,null,null,null,null,0]
[null,"sprężony biometan",null,null,null,null,null,42,{"$f":"AB26","v":0},null,null,null,null,null,null,null,null,null,null,null,50,null,null,null,null,0]
[null,"biowodór",null,null,null,null,null,43,{"$f":"AC26","v":0},null,null,null,null,null,null,null,null,null,null,null,120,null,null,null,null,0]
[null,"Razem (w.32+w.33+w.34+w.35+w.36+w.37+w.38+w.39+w.40+w.41+w.42+w.43)",null,null,null,null,null,44,{"$f":"SUM(I84:T95)","v":0},null,null,null,null,null,null,null,null,null,null,null,null,null,null,null,null,{"$f":"SUM(Z84:AE95)","v":0}]
[]
[]
[null,"5.2. WARTOŚĆ ENERGETYCZNA BIOKOMPONENTÓW WYKORZYSTANYCH W PALIWACH CIEKŁYCH, O KTÓRYCH MOWA  W ART. 30B UST. 3 PKT 1 LIT. A USTAWY 10)"]
[null,0,null,null,null,null,null,1,2,null,null,null,null,null,null,null,null,null,null,null,3,null,null,null,null,4]
[null,"Rodzaj biokomponentu zawartego w oleju napędowym",null,null,null,null,null,"Nr wiersza","Ilość [tony]",null,null,null,null,null,null,null,null,null,null,null,"Wartość opałowa [MJ/kg]",null,null,null,null,"Wartość energetyczna [MJ]"]
[]
[null,"bioetanol",null,null,null,null,null,45,{"$f":"J29","v":0},null,null,null,null,null,null,null,null,null,null,null,27,null,null,null,null,{"$f":"I103*U103*1000","v":0}]
[null,"biometanol",null,null,null,null,null,46,{"$f":"V29","v":0},null,null,null,null,null,null,null,null,null,null,null,20,null,null,null,null,{"$f":"I104*U104*1000","v":0}]
[null,"biobutanol",null,null,null,null,null,47,{"$f":"Y29","v":0},null,null,null,null,null,null,null,null,null,null,null,33,null,null,null,null,0]
[null,"ester",null,"metylowy kwasów tłuszczowych",null,null,null,48,{"$f":"P29","v":0},null,null,null,null,null,null,null,null,null,null,null,37,null,null,null,null,0]
[null,null,null,"etylowy kwasów tłuszczowych",null,null,null,49,{"$f":"S29","v":0},null,null,null,null,null,null,null,null,null,null,null,40.1,null,null,null,null,0]
[null,"bioeter dimetylowy",null,null,null,null,null,50,{"$f":"W29","v":0},null,null,null,null,null,null,null,null,null,null,null,28,null,null,null,null,0]
[null,"czysty olej roślinny",null,null,null,null,null,51,{"$f":"X29","v":0},null,null,null,null,null,null,null,null,null,null,null,37,null,null,null,null,0]
[null,"biowęglowodory ciekłe do silników z zapłonem samoczynnym",null,null,null,null,null,52,{"$f":"AD29","v":0},null,null,null,null,null,null,null,null,null,null,null,44,null,null,null,null,0]
[null,"bio propan-butan",null,null,null,null,null,53,{"$f":"Z29","v":0},null,null,null,null,null,null,null,null,null,null,null,0,null,null,null,null,{"$f":"I111*U111*1000","v":0}]
[null,"skroplony biometan",null,null,null,null,null,54,{"$f":"AA29","v":0},null,null,null,null,null,null,null,null,null,null,null,0,null,null,null,null,0]
[null,"sprężony biometan",null,null,null,null,null,55,{"$f":"AB29","v":0},null,null,null,null,null,null,null,null,null,null,null,50,null,null,null,null,0]
[null,"biowodór",null,null,null,null,null,56,{"$f":"AC29","v":0},null,null,null,null,null,null,null,null,null,null,null,120,null,null,null,null,0]
[null,"Razem (w.45+w.46+w.47+w.48+w.49+w.50+w.51+w.52+w.53+w.54+w.55+w.56)",null,null,null,null,null,57,{"$f":"SUM(I103:T114)","v":0},null,null,null,null,null,null,null,null,null,null,null,null,null,null,null,null,{"$f":"SUM(Z103:AE114)","v":0}]
[]
[]
[null,"6. WARTOŚĆ ENERGETYCZNA PALIW CIEKŁYCH, O KTÓRYCH MOWA W ART. 30B UST. 3 PKT 1 LIT. A USTAWY 11)"]
[null,0,null,null,null,null,null,1,2,null,null,null,null,null,null,null,null,null,null,null,3,null,null,null,null,4]
[null,"Rodzaj paliwa ciekłego",null,null,null,null,null,"Nr wiersza","Ilość [tony]",null,null,null,null,null,null,null,null,null,null,null,"Wartość opałowa [MJ/kg]",null,null,null,null,"Wartość energetyczna [MJ]"]
[]
[null,"czyste benzyny silnikowe zawarte w paliwach ciekłych",null,null,null,null,null,58,{"$f":"H26-(J26+P26+S26+V26+W26+X26+Y26+Z26+AA26+AB26+AC26+AD26)","v":0},null,null,null,null,null,null,null,null,null,null,null,43,null,null,null,null,{"$f":"I122*U122*1000","v":0}]
[null,"czysty olej napędowy zawarty w paliwach ciekłych",null,null,null,null,null,59,{"$f":"H29-(J29+P29+S29+V29+W29+X29+Y29+Z29+AA29+AB29+AC29+AD29)","v":0},null,null,null,null,null,null,null,null,null,null,null,43,null,null,null,null,{"$f":"I123*U123*1000","v":0}]
[]
[null,"7. UDZIAŁ BIOKOMPONENTÓW W PALIWACH CIEKŁYCH, O KTÓRYCH MOWA W ART. 30B UST. 3 PKT 1 LIT. A USTAWY [%] 12)"]
[null,"benzyny silnikowe",null,null,null,null,null,null,null,null,null,null,null,null,null,{"$f":"Z96/(Z96+Z122)","v":{"$error":"#DIV/0!"}}]
[null,"olej napędowy",null,null,null,null,null,null,null,null,null,null,null,null,null,{"$f":"Z115/(Z115+Z123)","v":{"$error":"#DIV/0!"}}]
[]
[null,"Jestem świadomy odpowiedzialności karnej za złożenie fałszywego oświadczenia wynikającej z art. 233 § 6 ustawy z dnia 6 czerwca 1997 r. – Kodeks karny."]
[]
[null,"Miejsce i data sporządzenia sprawozdania ",null,null,null,null,null,null,null,null,null,null,null,null,null,null,null,null,null,null,null,null,"Podpis osoby upoważnionej do reprezentowania podmiotu składającego sprawozdanie 13)"]
[]
[]
[]
[]
[]
[]
[null,"Objaśnienia"]
[null,"1) Firma, w brzmieniu zgodnym z wpisem występującym we właściwym rejestrze, tj. w Krajowym Rejestrze Sądowym lub Centralnej Ewidencji i Informacji o Działalności Gospodarczej, w przypadku podmiotów prowadzących działalność gospodarczą lub imię i nazwisko w przypadku osób fizycznych. "]
[null,"2) Należy wpisać państwo, w którym podmiot realizujący Narodowy Cel Wskaźnikowy ma siedzibę lub miejsce zamieszkania.  "]
[null,"3) Jeżeli podmiot posiada."]
[null,"4) Wypełniając kolumnę 2 w tabelach nr 1-3 należy w niej uwzględnić całkowitą ilość paliwa ciekłego lub biopaliwa ciekłego, tj. wraz z zawartością danego rodzaju biokomponentu (biokomponentów). Natomiast wypełniając w tabelach nr 1-2 kolumny 3-14, a w tabeli nr 3 wypełniając kolumny 3-13 należy podać ilość danego rodzaju biokomponentu (biokomponentów) rozumianą jako jego zawartość w całkowitej ilości paliwa ciekłego lub biopaliwa ciekłego, podanej w kolumnie 2."]
[null,"5) Wypełniając tabelę nr 1 należy w niej umieścić całkowitą ilość paliwa ciekłego wraz z zawartością danego rodzaju biokomponentu (biokomponentów), która została wykorzystana przez podmiot realizujący Narodowy Cel Wskaźnikowy do realizacji obowiązku, o którym mowa w art. 23b ustawy."]
[null,"6) W celu dokonania przeliczenia z jednostki objętości na jednostkę masy oraz z jednostki masy na jednostkę objętości należy stosować wartości wskazane w rozporządzeniu Ministra Gospodarki z dnia 21 października 2014 r. w sprawie wartości opałowej poszczególnych biokomponentów i paliw ciekłych (Dz. U. poz. 1517). "]
[null,"7) Wypełniając tabelę nr 2 należy w niej umieścić całkowitą ilość paliwa ciekłego wraz z zawartością danego rodzaju biokomponentu (biokomponentów), o której mowa w art. 23b ust. 2 ustawy, odpowiadającą ilości komponentów lub dodatków dodanych do tego paliwa."]
[null,"8) Wypełniając tabelę nr 3 należy w niej umieścić całkowitą ilość biopaliw ciekłych wraz z zawartością danego rodzaju biokomponentu (biokomponentów), rozporządzonych przez dokonanie jakiejkolwiek czynności prawnej lub faktycznej skutkującej trwałym wyzbyciem się biopaliw ciekłych lub zużytych przez podmiot realizujący Narodowy Cel Wskaźnikowy w okresie sprawozdawczym. "]
[null,"9) Wypełniając tabelę nr 4 należy w niej umieścić całkowitą ilość innych paliw odnawialnych, rozporządzonych przez dokonanie jakiejkolwiek czynności prawnej lub faktycznej skutkującej trwałym wyzbyciem się innych paliw odnawialnych lub zużytych przez podmiot realizujący Narodowy Cel Wskaźnikowy w okresie sprawozdawczym. "]
[null,"10) Wartość energetyczna biokomponentów, których ilości sprawozdano w tabeli nr 1, tj. zawartych w paliwach ciekłych wykorzystanych do realizacji obowiązku, o którym mowa w art. 23b ustawy. "]
[null,"11) Wartość energetyczna czystych paliw ciekłych, których ilości sprawozdano w tabeli nr 1, tj. wykorzystanych do realizacji obowiązku, o którym mowa w art. 23b ustawy. "]
[null,"12) Udział biokomponentów w paliwach ciekłych, których ilości sprawozdano w tabeli nr 1, tj. zawartych w paliwach ciekłych wykorzystanych do realizacji obowiązku, o którym mowa w art. 23b ustawy, liczony według wartości energetycznej."]
[null,"13) W przypadku sprawozdania składanego w postaci papierowej -  czytelny podpis ze wskazaniem imienia i nazwiska; w przypadku postaci elektronicznej - kwalifikowany podpis elektroniczny albo podpis zaufany albo podpis osobisty."]